fUSD/lending_fUSD_20260404
["ID","MTS","AMOUNT","RATE_DAILY","PERIOD"]
[419696981,1775309436387,-500.0,0.00015999,2]
[419696982,1775309436397,-500.0,0.00015999,2]
[419696983,1775309436406,-500.0,0.00015999,2]
[419696984,1775309436415,-500.0,0.00015999,2]
[419696985,1775309436424,-500.0,0.00015999,2]
[419696986,1775309436434,-500.0,0.00015999,2]
[419696987,1775309436443,-500.0,0.00015999,2]
[419696988,1775309436453,-500.0,0.00015999,2]
[419696989,1775309436462,-500.0,0.00015999,2]
[419696990,1775309436472,-500.0,0.00015999,2]
[419696991,1775309436481,-500.0,0.00015999,2]
[419696992,1775309436491,-500.0,0.00015999,2]
[419696993,1775309436500,-500.0,0.00015999,2]
[419696994,1775309436509,-500.0,0.00015999,2]
[419696995,1775309436519,-500.0,0.00015999,2]
[419696996,1775309436528,-500.0,0.00015999,2]
[419696997,1775309436538,-500.0,0.00015999,2]
[419696998,1775309436547,-500.0,0.00015999,2]
[419696999,1775309436556,-500.0,0.00015999,2]
[419697000,1775309436566,-500.0,0.00015999,2]
[419697001,1775309436576,-500.0,0.00015999,2]
[419697002,1775309436585,-520.24272845,0.00015999,2]
[419697003,1775309436595,-500.0,0.00015999,2]
[419697004,1775309436604,-334.02643621,0.00015999,2]
[419697005,1775309436614,-500.0,0.00015999,2]
[419697006,1775309436623,-500.0,0.00015999,2]
[419697007,1775309436632,-500.0,0.00015999,2]
[419697008,1775309436641,-500.0,0.00015999,2]
[419697009,1775309436651,-500.0,0.00015999,2]
[419697010,1775309436660,-500.0,0.00015999,2]
[419697011,1775309436670,-500.0,0.00015999,2]
[419697012,1775309436679,-500.0,0.00015999,2]
[419697013,1775309436688,-500.0,0.00015999,2]
[419697014,1775309436698,-500.0,0.00015999,2]
[419697015,1775309436708,-500.0,0.00015999,2]
[419697016,1775309436718,-500.0,0.00015999,2]
[419697017,1775309436727,-500.0,0.00015999,2]
[419697018,1775309436737,-619.82953178,0.00015999,2]
[419697019,1775309436746,-4293.0,0.00016,5]
[419697020,1775309436755,-150.0,0.00016,2]
[419697021,1775309436765,-150.0,0.00016,2]
[419697022,1775309436774,-150.0,0.00016,2]
[419697023,1775309436783,-150.0,0.00016,2]
[419697024,1775309436793,-150.0,0.00016,2]
[419697025,1775309436802,-150.0,0.00016,2]
[419697026,1775309436812,-150.0,0.00016,2]
[419697027,1775309436822,-150.0,0.00016,2]
[419697028,1775309436831,-150.0,0.00016,2]
[419697029,1775309436841,-150.0,0.00016,2]
[419697030,1775309436850,-550327.24435385,0.00016,2]
[419697031,1775309436868,-850.09467,0.00016,2]
[419697032,1775309436880,-702.36606411,0.00016,2]
[419697033,1775309436899,-299.23478,0.00016,2]
[419697034,1775309436910,-756.35463349,0.00016,2]
[419697035,1775309436921,-2416.29731248,0.00016,2]
[419697036,1775309436932,-280.72,0.00016,2]
[419697037,1775309436944,-5707.44945277,0.00016,2]
[419697038,1775309436955,-6656.3528631,0.00016,2]
[419697039,1775309436966,-14509.76393067,0.00016,2]
[419697040,1775309436977,-4302.44331392,0.00016,2]
[419697041,1775309436987,-610.44814184,0.00016,2]
[419697042,1775309436998,-987.95536,0.00016,2]
[419697043,1775309437009,-869.66570832,0.00016,2]
[419697044,1775309437021,-1008.75000001,0.00016,2]
[419697045,1775309437056,-103209.72388314,0.00016,2]
[419697046,1775309437068,-454.4361659,0.00016,2]
[419697047,1775309437079,-2197.44542702,0.00016,2]
[419697048,1775309437090,-382.82685681,0.00016,2]
[419697049,1775309437101,-2892.35442139,0.00016,2]
[419697050,1775309437119,-388.019697,0.00016,2]
[419697051,1775309437131,-615.73022702,0.00016,2]
[419697052,1775309437142,-28287.60272299,0.00016,2]
[419697053,1775309437153,-12212.54101581,0.00016,2]
[419697054,1775309437164,-2088.41628585,0.00016,2]
[419697055,1775309437176,-297.67600704,0.00016,2]
[419697056,1775309437195,-11920.92741487,0.00016,2]
[419697057,1775309437206,-4451.41049392,0.00016,2]
[419697058,1775309437217,-994.68708973,0.00016,2]
[419697059,1775309437228,-510.61,0.00016,2]
[419697060,1775309437239,-1179.15573232,0.00016,2]
[419697061,1775309437251,-53335.92228654,0.00016,2]
[419697062,1775309437262,-66136.02704105,0.00016,2]
[419697063,1775309437273,-1910.49157789,0.00016,2]
[419697064,1775309437293,-644.71052742,0.00016,2]
[419697065,1775309437304,-659.1457183,0.00016,2]
[419697066,1775309437316,-952.0,0.00016,2]
[419697067,1775309437327,-7859.84457289,0.00016,2]
[419697068,1775309437338,-507.104,0.00016,2]
[419697253,1775309440377,-1061.0,0.00011679,2]
[419697255,1775309440387,-500.0,0.00015649,2]
[419697257,1775309440397,-500.0,0.00015649,2]
[419697258,1775309440406,-500.0,0.00015898,2]
[419697260,1775309440416,-500.0,0.00015999,2]
[419697262,1775309440426,-500.0,0.00015999,2]
[419697264,1775309440435,-239.55334224,0.00015999,2]
[419697266,1775309440447,-260.44665776,0.00015999,2]
[419697267,1775309440457,-500.0,0.00015999,2]
[419697269,1775309440466,-186.15865542,0.00015999,2]
[419697271,1775309440476,-10247.37893827,0.00016,2]
[419697273,1775309440488,-1128.37587025,0.00016,2]
[419697275,1775309440499,-606.81999954,0.00016,2]
[419697277,1775309440510,-1498.05195388,0.00016,2]
[419697279,1775309440521,-4020.37096218,0.00016,2]
[419697281,1775309440532,-2144.56435446,0.00016,2]
[419697283,1775309440542,-6939.94114695,0.00016,2]
[419697285,1775309440561,-828.73,0.00016,2]
[419697287,1775309440572,-1343.44849106,0.00016,2]
[419697289,1775309440583,-1130.97845963,0.00016,2]
[419697291,1775309440594,-173578.81466723,0.00016,2]
[419697293,1775309440603,-14164.14402843,0.00016,6]
[419697295,1775309440615,-2992.09560657,0.00016,6]
[419697297,1775309440626,-2692.33929163,0.00016,6]
[419697299,1775309440637,-843.17303129,0.00016,6]
[419697301,1775309440648,-3494.11304809,0.00016,6]
[419697303,1775309440659,-353.95395572,0.00016,6]
[419697305,1775309440670,-531.13294994,0.00016,6]
[419697312,1775309440739,-7597.2,0.00016,6]
[419697314,1775309440750,-796.01445531,0.00016,6]
[419697323,1775309440844,-874.22355268,0.00016,6]
[419697325,1775309440855,-731.87763235,0.00016,6]
[419697327,1775309440867,-315.0,0.00016,6]
[419697329,1775309440878,-4938.94304721,0.00016,6]
[419697331,1775309440889,-85819.9199613,0.00016,6]
[419697333,1775309440900,-30648.98829637,0.00016,6]
[419697335,1775309440911,-1412.62,0.00016,6]
[419697337,1775309440922,-691.58645727,0.00016,6]
[419697339,1775309440933,-15803.85693022,0.00016,6]
[419697341,1775309440944,-606.92356109,0.00016,6]
[419697343,1775309440955,-2485.97986445,0.00016,6]
[419697345,1775309440966,-500.0,0.00016,6]
[419697347,1775309440977,-748.26893567,0.00016,6]
[419697413,1775309441775,-13541.00774894,0.00016,6]
[419697416,1775309441787,-9136.69,0.00016,6]
[419697418,1775309441799,-899.72188916,0.00016,6]
[419697481,1775309442411,-2470.0,0.0001586,2]
[419697482,1775309442421,-2578.431529,0.00016,6]
[419697483,1775309442432,-3351.79532226,0.00016,6]
[419697484,1775309442452,-10883.88023036,0.00016,6]
[419697485,1775309442463,-1025.49280924,0.00016,6]
[419697486,1775309442474,-549716.84644608,0.00016,6]
[419697487,1775309442483,-260.0,0.00016,2]
[419697488,1775309442493,-311231.68138105,0.00016,2]
[419697489,1775309442674,-1362.0,0.00016,2]
[419697490,1775309442686,-36132.87203757,0.00016,2]
[419697496,1775309443139,-6041.25699816,0.00016,2]
[419697499,1775309446622,-750.85999417,0.00016,2]
[419697500,1775309446633,-100.38800583,0.00016,2]
[419697511,1775309553955,-250.0,0.00013,2]
[419697512,1775309553982,-359.0,0.00013712,2]
[419697513,1775309554012,-14391.0,0.00013712,2]
[419697514,1775309839721,-500.0,0.00013111,2]
[419697515,1775309839750,-347.0,0.00013111,2]
[419697517,1775310079824,500.0,0.00013111,2]
[419697520,1775310440384,500.0,0.00013111,2]
[419697541,1775310632826,-600.0,0.00013303,2]
[419697542,1775310632838,-250.0,0.00013306,2]
[419697543,1775310632847,-557.06176575,0.00013308,2]
[419697544,1775310632859,-42.93823425,0.00013308,2]
[419697545,1775310632868,-1779.02573247,0.00013612,2]
[419697553,1775310638341,-6349.73984714,0.00013612,2]
[419697554,1775310638352,-3427.47393524,0.00013612,2]
[419697555,1775310638395,-402.80589747,0.00013612,2]
[419697556,1775310638662,-500.0,0.00013612,2]
[419697658,1775310640763,-9551.49258768,0.00013612,2]
[419697659,1775310640773,-250.0,0.00013678,2]
[419697660,1775310640782,-300.0,0.00013711,2]
[419697661,1775310640792,-1747.39064861,0.00014356,2]
[419697662,1775310640801,-500.0,0.00014356,2]
[419697663,1775310640811,-700.0,0.00014356,2]
[419697664,1775310640820,-535.64049586,0.00014443,2]
[419697665,1775310640832,-964.35950414,0.00014443,2]
[419697666,1775310640841,-195.11,0.00014482,2]
[419697667,1775310640851,-2000.0,0.00014523,2]
[419697668,1775310640860,-150.0,0.00014553,2]
[419697669,1775310640869,-1884.89347484,0.00014628,2]
[419697670,1775310640885,-615.10652516,0.00014628,2]
[419697671,1775310640894,-1200.90635308,0.00014628,2]
[419697672,1775310640905,-1299.09364692,0.00014628,2]
[419697673,1775310640915,-2500.0,0.00014628,2]
[419697674,1775310640925,-2500.0,0.00014628,2]
[419697675,1775310640935,-1763.32518364,0.00014628,2]
[419697676,1775310640944,-600.0,0.00014628,2]
[419697677,1775310640954,-600.0,0.00014628,2]
[419697678,1775310640964,-300.0,0.00014633,2]
[419697679,1775310640974,-300.0,0.00014633,2]
[419697680,1775310640983,-300.0,0.00014633,2]
[419697681,1775310640993,-300.0,0.00014633,2]
[419697682,1775310641002,-300.0,0.00014633,2]
[419697683,1775310641011,-600.0,0.00014633,2]
[419697684,1775310641021,-195.0,0.00014633,2]
[419697685,1775310641030,-195.0,0.00014633,2]
[419697686,1775310641040,-228.7400007,0.00014633,2]
[419697687,1775310641049,-250.0,0.00014633,2]
[419697688,1775310641059,-1755.52,0.00014946,2]
[419697689,1775310641068,-500.0,0.00014996,2]
[419697690,1775310641077,-420.0,0.00015026,2]
[419697691,1775310641086,-200.0,0.00015048,2]
[419697692,1775310641096,-803.07880727,0.00015068,2]
[419697693,1775310641105,-739.36,0.000151,2]
[419697694,1775310641114,-2533.68,0.00015101,2]
[419697695,1775310641124,-310.4251096,0.00015199,2]
[419697696,1775310641134,-200.0,0.00015199,2]
[419697697,1775310641143,-174.61919141,0.00015199,2]
[419697698,1775310641152,-9277.79,0.0001531,2]
[419697699,1775310641162,-150.99,0.0001531,2]
[419697700,1775310641172,-299.99,0.0001531,2]
[419697701,1775310641181,-999.99,0.0001531,2]
[419697702,1775310641190,-4999.99,0.0001531,2]
[419697703,1775310641199,-700.0,0.00015726,2]
[419697704,1775310641210,-200.0,0.00015747,2]
[419697705,1775310641220,-181.08010149,0.00015747,2]
[419697706,1775310641229,-500.0,0.0001576,2]
[419697707,1775310641239,-2500.0,0.0001576,2]
[419697708,1775310641249,-5000.0,0.000158,2]
[419697709,1775310641258,-2875.71051432,0.000158,2]
[419697710,1775310641269,-8485.56073168,0.000158,2]
[419697711,1775310641278,-2875.71051426,0.00015814,2]
[419697712,1775310641288,-8485.56073167,0.0001582,2]
[419697713,1775310641298,-2875.71051426,0.00015829,2]
[419697714,1775310641308,-429.94218197,0.00015839,2]
[419697715,1775310641318,-1466.97617,0.0001584,2]
[419697716,1775310641328,-1466.97618,0.0001584,2]
[419697717,1775310641338,-8485.56073167,0.0001584,2]
[419697718,1775310641349,-2875.71051426,0.00015843,2]
[419697719,1775310641359,-1466.97618,0.0001585,2]
[419697720,1775310641368,-2875.71051426,0.00015857,2]
[419697721,1775310641378,-1347.0,0.0001586,2]
[419697722,1775310641388,-1046.0,0.0001586,2]
[419697723,1775310641399,-622.0,0.0001586,2]
[419697724,1775310641410,-3521.0,0.0001586,2]
[419697725,1775310641421,-1263.0,0.0001586,2]
[419697726,1775310641432,-150.0,0.0001586,2]
[419697727,1775310641442,-8485.56073167,0.0001586,2]
[419697728,1775310641452,-150.0,0.0001586,2]
[419697729,1775310641462,-6019.0,0.0001586,2]
[419697730,1775310641471,-150.09,0.0001586,2]
[419697731,1775310641481,-150.0,0.0001586,2]
[419697732,1775310641491,-150.099,0.0001586,2]
[419697733,1775310641500,-2470.0,0.0001586,2]
[419697734,1775310641510,-2875.71051426,0.00015871,2]
[419697735,1775310641521,-500.0,0.00015872,2]
[419697736,1775310641531,-200.0,0.00015872,2]
[419697737,1775310641541,-500.0,0.00015873,2]
[419697738,1775310641551,-502.58762782,0.00015873,2]
[419697739,1775310641561,-381.20749087,0.00015873,2]
[419697740,1775310641571,-527.55865505,0.00015873,2]
[419697741,1775310641582,-500.0,0.00015873,2]
[419697742,1775310641593,-500.91934026,0.00015873,2]
[419697743,1775310641604,-500.0,0.00015873,2]
[419697744,1775310641615,-500.0,0.00015873,2]
[419697745,1775310641625,-159.77397605,0.00015873,2]
[419697746,1775310641635,-500.0,0.00015873,2]
[419697747,1775310641645,-500.0,0.00015873,2]
[419697748,1775310641654,-500.0,0.00015873,2]
[419697749,1775310641664,-2274.046,0.00015873,2]
[419697750,1775310641674,-185.877,0.00015873,2]
[419697751,1775310641684,-8485.56073167,0.0001588,2]
[419697752,1775310641694,-2875.71051426,0.00015886,2]
[419697753,1775310641703,-150.85095809,0.0001589,2]
[419697754,1775310641712,-500.0,0.00015898,2]
[419697755,1775310641724,-500.0,0.00015899,2]
[419697756,1775310641735,-240.04760121,0.00015899,2]
[419697757,1775310641745,-239.0441826,0.00015899,2]
[419697758,1775310641755,-500.0,0.00015899,2]
[419697759,1775310641765,-282.45616885,0.00015899,2]
[419697760,1775310641776,-500.0,0.00015899,2]
[419697761,1775310641786,-500.0,0.00015899,2]
[419697762,1775310641797,-500.0,0.00015899,2]
[419697763,1775310641807,-500.0,0.00015899,2]
[419697764,1775310641816,-500.0,0.00015899,2]
[419697765,1775310641826,-283.69746953,0.00015899,2]
[419697766,1775310641835,-500.0,0.00015899,2]
[419697767,1775310641844,-297.90990777,0.00015899,2]
[419697768,1775310641853,-500.0,0.00015899,2]
[419697769,1775310641862,-232.50492352,0.00015899,2]
[419697770,1775310641872,-500.0,0.00015899,2]
[419697771,1775310641883,-514.07409426,0.00015899,2]
[419697772,1775310641892,-500.0,0.00015899,2]
[419697773,1775310641902,-500.0,0.00015899,2]
[419697774,1775310641912,-500.0,0.00015899,2]
[419697775,1775310641921,-500.0,0.00015899,2]
[419697776,1775310641930,-500.0,0.00015899,2]
[419697777,1775310641939,-500.0,0.00015899,2]
[419697778,1775310641948,-500.0,0.00015899,2]
[419697779,1775310641958,-500.0,0.00015899,2]
[419697780,1775310641968,-500.0,0.00015899,2]
[419697781,1775310641977,-500.0,0.00015899,2]
[419697782,1775310641986,-500.0,0.00015899,2]
[419697783,1775310641995,-500.0,0.00015899,2]
[419697784,1775310642005,-500.0,0.00015899,2]
[419697785,1775310642014,-500.0,0.00015899,2]
[419697786,1775310642023,-500.0,0.00015899,2]
[419697787,1775310642032,-500.0,0.00015899,2]
[419697788,1775310642041,-500.0,0.00015899,2]
[419697789,1775310642051,-500.0,0.00015899,2]
[419697790,1775310642060,-493.99231216,0.00015899,2]
[419697791,1775310642070,-500.0,0.00015899,2]
[419697792,1775310642079,-500.0,0.00015899,2]
[419697793,1775310642088,-500.0,0.00015899,2]
[419697794,1775310642098,-500.0,0.00015899,2]
[419697795,1775310642107,-500.0,0.00015899,2]
[419697796,1775310642116,-500.0,0.00015899,2]
[419697797,1775310642126,-500.0,0.00015899,2]
[419697798,1775310642135,-500.0,0.00015899,2]
[419697799,1775310642144,-500.0,0.00015899,2]
[419697800,1775310642153,-500.0,0.00015899,2]
[419697801,1775310642162,-701137.47110785,0.000159,2]
[419697802,1775310642176,-875.7142854,0.000159,2]
[419697803,1775310642253,-776.90309751,0.000159,2]
[419697810,1775310646523,-260.0,0.000133,2]
[419697811,1775310646533,-746.2589854,0.000159,2]
[419697812,1775310646631,-4383.12961779,0.000159,2]
[419697820,1775310650139,-8101.0999973,0.00015899,2]
[419697821,1775310650150,-19429.19061527,0.000159,2]
[419697824,1775310672850,153.0,0.00013111,2]
[419697825,1775310701198,-393.0,0.00013111,2]
[419697826,1775310701226,-347.0,0.00013111,2]
[419697827,1775310707312,500.0,0.00013111,2]
[419697828,1775310797404,500.0,0.00013111,2]
[419697830,1775311088657,246.26,7.157e-05,2]
[419697831,1775311088846,246.26,7.533e-05,2]
[419697832,1775311089042,246.26,7.91e-05,2]
[419697833,1775311089226,246.26,8.287e-05,2]
[419697834,1775311089420,246.26,8.663e-05,2]
[419697835,1775311089828,246.26,9.04e-05,2]
[419697836,1775311090636,246.26,9.416e-05,2]
[419697837,1775311090686,246.26,9.793e-05,2]
[419697838,1775311090743,246.26,0.0001017,2]
[419697839,1775311090792,246.26,0.00010546,2]
[419697840,1775311090838,246.26,0.00010923,2]
[419697841,1775311091028,246.26,0.000113,2]
[419697842,1775311091458,246.26,0.00011676,2]
[419697843,1775311092042,246.26,0.00012053,2]
[419697844,1775311092121,246.26,0.0001243,2]
[419697845,1775311092257,246.26,0.00012806,2]
[419697846,1775311153343,500.0,0.00013111,2]
[419697852,1775311407666,2179.01,0.00011507,2]
[419697854,1775311520123,500.0,0.00013111,2]
[419697870,1775311812706,1140.83,0.000107,2]
[419697873,1775311831822,-265.84703492,0.000107,2]
[419697874,1775311831839,-460.4905005,0.000107,2]
[419697875,1775311831852,-474.202935,0.000107,2]
[419697876,1775311831864,-3287.8,0.000107,2]
[419697877,1775311831889,-1795.3333,0.000107,2]
[419697878,1775311831901,-1697.37309032,0.000107,2]
[419697879,1775311835309,-10000.0,0.000107,2]
[419697882,1775311837568,-580.29201335,0.000107,2]
[419697883,1775311837580,-252.9257169,0.000107,2]
[419697884,1775311837591,-6859.99277437,0.000107,2]
[419697885,1775311837622,-363.98041957,0.000107,2]
[419697886,1775311837679,-2096.4,0.000107,2]
[419697887,1775311837690,-277.1185607,0.000107,2]
[419697928,1775311839837,-3336.4645772,0.000107,2]
[419697929,1775311839943,-61130.18970213,0.000107,2]
[419697930,1775311839953,-246.26,0.00013183,2]
[419697931,1775311839962,-991.23,0.00013349,7]
[419697932,1775311839971,-396.48,0.00013349,30]
[419697933,1775311839980,-246.26,0.0001356,2]
[419697934,1775311839990,-4054.01,0.0001366,2]
[419697935,1775311839999,-3240.0,0.00013718,2]
[419697936,1775311840008,-246.26,0.00013936,2]
[419697937,1775311840017,-166.66,0.00014035,2]
[419697938,1775311840027,-300.0,0.00014171,2]
[419697939,1775311840036,-2207.35007584,0.00014173,2]
[419697940,1775311840046,-151.0,0.00014247,2]
[419697941,1775311840055,-153.43679859,0.00014247,2]
[419697942,1775311840064,-500.0,0.00014255,2]
[419697943,1775311840074,-500.0,0.00014255,2]
[419697944,1775311840083,-500.0,0.00014255,2]
[419697945,1775311840093,-500.0,0.00014255,2]
[419697946,1775311840101,-500.0,0.00014255,2]
[419697947,1775311840111,-392.63280089,0.00014255,2]
[419697948,1775311840120,-500.0,0.00014255,2]
[419697949,1775311840129,-500.0,0.00014255,2]
[419697950,1775311840139,-500.0,0.00014255,2]
[419697951,1775311840148,-500.0,0.00014255,2]
[419697952,1775311840158,-500.0,0.00014255,2]
[419697953,1775311840168,-500.0,0.00014255,2]
[419697954,1775311840177,-500.0,0.00014255,2]
[419697955,1775311840186,-500.0,0.00014255,2]
[419697956,1775311840195,-500.0,0.00014255,2]
[419697957,1775311840205,-500.0,0.00014255,2]
[419697958,1775311840214,-500.0,0.00014255,2]
[419697959,1775311840224,-185.877,0.00014255,2]
[419697960,1775311840234,-2274.046,0.00014255,2]
[419697961,1775311840244,-500.0,0.00014255,2]
[419697962,1775311840254,-500.0,0.00014255,2]
[419697963,1775311840264,-500.0,0.00014255,2]
[419697964,1775311840273,-500.0,0.00014255,2]
[419697965,1775311840282,-701235.0932,0.00014256,2]
[419697966,1775311840291,-500.0,0.00014273,2]
[419697967,1775311840301,-246.26,0.00014313,2]
[419697968,1775311840310,-500.0,0.00014356,2]
[419697969,1775311840319,-600.0,0.00014356,2]
[419697970,1775311840328,-2207.35007582,0.00014365,2]
[419697971,1775311840338,-594.74,0.00014408,2]
[419697972,1775311840347,-166.66,0.00014498,2]
[419697973,1775311840357,-187.95451372,0.00014501,2]
[419697974,1775311840366,-2207.35007582,0.00014557,2]
[419697975,1775311840375,-2207.35007582,0.00014749,2]
[419697976,1775311840384,-154.42,0.00014852,2]
[419697977,1775311840394,-1600.0,0.00014863,2]
[419697978,1775311840403,-2207.35007582,0.00014941,2]
[419697979,1775311840413,-166.66,0.00014961,2]
[419697980,1775311840422,-5000.0,0.0001511,2]
[419697981,1775311840431,-2207.35007582,0.00015132,2]
[419697982,1775311840441,-200.0,0.00015184,2]
[419697983,1775311840450,-174.61919141,0.00015184,2]
[419697984,1775311840461,-12786.00612442,0.0001521,2]
[419697992,1775311842517,-293.23098207,0.0001521,2]
[419697994,1775311845716,-1595.749985,0.0001521,2]
[419697995,1775311845949,-1566.79534434,0.0001521,2]
[419697998,1775311849394,-16458.37816726,0.0001521,2]
[419697999,1775311849406,-10560.53160195,0.0001521,2]
[419698000,1775311849419,-89567.38909496,0.0001521,2]
[419698001,1775311849431,-362.4459879,0.00015273,2]
[419698002,1775311849443,-500.0,0.00015273,2]
[419698003,1775311849453,-501.55161327,0.00015273,2]
[419698004,1775311849462,-527.55865505,0.00015273,2]
[419698005,1775311849471,-500.0,0.00015273,2]
[419698006,1775311849482,-500.0,0.00015273,2]
[419698007,1775311849491,-500.0,0.00015273,2]
[419698008,1775311849501,-500.0,0.00015273,2]
[419698009,1775311849510,-500.91934026,0.00015273,2]
[419698010,1775311849519,-500.0,0.00015273,2]
[419698011,1775311849528,-500.0,0.00015273,2]
[419698012,1775311849537,-500.0,0.00015273,2]
[419698013,1775311849546,-500.0,0.00015273,2]
[419698014,1775311849556,-159.77397605,0.00015273,2]
[419698015,1775311849565,-500.0,0.00015273,2]
[419698016,1775311849574,-9907.67,0.0001531,2]
[419698017,1775311849584,-2207.35007582,0.00015324,2]
[419698018,1775311849593,-166.66,0.00015425,2]
[419698019,1775311849603,-168.0,0.00015493,2]
[419698020,1775311849613,-1352.85,0.00015507,2]
[419698021,1775311849622,-2207.35007582,0.00015516,2]
[419698022,1775311849632,-420.0,0.00015522,2]
[419698023,1775311849641,-168.0,0.00015529,2]
[419698024,1775311849650,-6019.0,0.00015571,2]
[419698025,1775311849660,-2470.0,0.00015571,2]
[419698026,1775311849669,-168.0,0.00015621,2]
[419698027,1775311849679,-209.929973,0.0001568,7]
[419698028,1775311849689,-172.132607,0.0001568,7]
[419698029,1775311849698,-2207.35007582,0.00015708,2]
[419698030,1775311849707,-600.0,0.00015726,2]
[419698031,1775311849717,-181.08010149,0.00015732,2]
[419698032,1775311849726,-700.0,0.00015745,2]
[419698033,1775311849735,-2259.03257639,0.00015807,2]
[419698034,1775311849744,-504.22341368,0.00015821,2]
[419698035,1775311849754,-501.06405699,0.00015821,2]
[419698036,1775311849763,-1002.59752033,0.00015821,2]
[419698037,1775311849772,-1000.0,0.00015821,2]
[419698038,1775311849782,-500.0,0.00015821,2]
[419698039,1775311849793,-1000.0,0.00015821,2]
[419698040,1775311849804,-501.37054133,0.00015821,2]
[419698041,1775311849814,-1000.0,0.00015821,2]
[419698042,1775311849826,-394.29704901,0.00015821,2]
[419698043,1775311849835,-1000.0,0.0001584,2]
[419698044,1775311849845,-1000.0,0.0001584,2]
[419698045,1775311849854,-1000.0,0.0001585,2]
[419698046,1775311849865,-259.532,0.0001586,2]
[419698047,1775311849876,-150.0,0.0001586,2]
[419698048,1775311849885,-150.0,0.0001586,2]
[419698049,1775311849894,-150.0,0.0001586,2]
[419698050,1775311849903,-292.243,0.0001586,2]
[419698051,1775311849912,-151.0,0.0001586,2]
[419698052,1775311849921,-429.94218197,0.0001586,2]
[419698053,1775311849931,-622.0,0.0001586,2]
[419698054,1775311849940,-3521.0,0.0001586,2]
[419698055,1775311849949,-1347.0,0.0001586,2]
[419698056,1775311849958,-150.0,0.0001586,2]
[419698057,1775311849967,-1263.0,0.0001586,2]
[419698058,1775311849977,-1000.0,0.0001586,2]
[419698059,1775311849986,-1000.0,0.0001586,2]
[419698060,1775311849995,-1000.0,0.0001586,2]
[419698061,1775311850004,-534.64,0.00015871,2]
[419698062,1775311850013,-197.900538,0.00015872,7]
[419698063,1775311850022,-500.0,0.00015872,2]
[419698064,1775311850032,-200.0,0.00015872,2]
[419698065,1775311850041,-395.426798,0.00015876,2]
[419698066,1775311850051,-166.66,0.00015888,2]
[419698067,1775311850061,-1352.85,0.00015895,2]
[419698068,1775311850070,-500.0,0.00015895,2]
[419698069,1775311850080,-232.50492352,0.00015895,2]
[419698070,1775311850089,-500.0,0.00015895,2]
[419698071,1775311850098,-282.45616885,0.00015895,2]
[419698072,1775311850117,-500.0,0.00015895,2]
[419698073,1775311850128,-239.0441826,0.00015895,2]
[419698074,1775311850137,-500.0,0.00015895,2]
[419698075,1775311850147,-500.0,0.00015895,2]
[419698076,1775311850156,-250.0,0.00015895,2]
[419698077,1775311850166,-240.04760121,0.00015895,2]
[419698078,1775311850175,-283.69746953,0.00015895,2]
[419698079,1775311850185,-500.0,0.00015895,2]
[419698080,1775311850195,-500.0,0.00015895,2]
[419698081,1775311850204,-500.0,0.00015895,2]
[419698082,1775311850214,-500.0,0.00015895,2]
[419698083,1775311850223,-500.0,0.00015895,2]
[419698084,1775311850232,-500.0,0.00015895,2]
[419698085,1775311850242,-500.0,0.00015895,2]